[Event "GER-ch Youth U10 2020"]
[Site "Willingen"]
[Date "2020.10.27"]
[Round "1.9"]
[White "Yin, Vito"]
[Black "Lu, Yunong Elias"]
[Result "0-1"]
[ECO "B10"]
[WhiteElo "1320"]
[BlackElo "1521"]
[Annotator "NA RC"]
[PlyCount "128"]
[EventDate "2020.10.27"]
[EventType "swiss"]
[EventRounds "7"]
[EventCountry "GER"]
[SourceTitle "playchess.com"]
[Source "ChessBase"]
[SourceQuality "1"]
[TimeControl "40/4500+30:900+30"]

1. e4 {[%emt 0:00:00]} c6 {[%emt 0:00:00]} 2. c4 {[%emt 0:00:00]} d5 {[%emt 0:00:15]} 3. cxd5 {[%emt 0:00:07]} cxd5 {[%emt 0:00:10]} 4. exd5 {[%emt 0:00:07]} Nf6 {[%emt 0:00:12]} 5. Bb5+ {[%emt 0:01:15]} Bd7 {[%emt 0:00:30]} 6. Qa4 {[%emt 0:00:02]} Nxd5 {[%emt 0:00:37]} 7. Bxd7+ {[%emt 0:00:50]} Nxd7 {[%emt 0:00:57]} 8. Nf3 {[%emt 0:00:56]} e6 {[%emt 0:00:31]} 9. Ne5 {[%emt 0:00:26]} N5b6 {[%emt 0:06:19]} 10. Qf4 {[%emt 0:03:00]} Nxe5 {[%emt 0:00:28]} 11. Qxe5 {[%emt 0:00:51]} Qd5 {[%emt 0:01:46]} 12. Qxd5 {[%emt 0:00:09]} Nxd5 {[%emt 0:00:09]} 13. Nc3 {[%emt 0:00:18]} O-O-O {[%emt 0:01:04]} 14. O-O {[%emt 0:01:23]} Bc5 {[%emt 0:00:59]} 15. Rd1 {[%emt 0:01:02]} Nb4 {[%emt 0:03:38]} 16. a3 {[%emt 0:01:45]} Nd3 {[%emt 0:00:40]} 17. Rf1 {[%emt 0:05:56]} Kb8 {[%emt 0:01:18]} 18. b4 {[%emt 0:09:27]} Bb6 {[%emt 0:01:53]} 19. Ra2 {[%emt 0:01:52]} Rc8 {[%emt 0:08:10]} 20. Ne2 {[%emt 0:03:37]} Rhd8 {[%emt 0:04:18]} 21. g3 {[%emt 0:02:05]} e5 {[%emt 0:03:07]} 22. Bb2 {[%emt 0:01:07]} Ka8 {[%emt 0:01:58]} 23. Bc3 {[%emt 0:01:59]} f6 {[%emt 0:03:11]} 24. Kg2 {[%emt 0:02:07]} Rc7 {[%emt 0:03:12]} 25. a4 {[%emt 0:01:17]} Rc4 {[%emt 0:01:30]} 26. a5 {[%emt 0:01:13]} Bc7 {[%emt 0:02:54]} 27. b5 {[%emt 0:01:37]} Bd6 {[%emt 0:06:08]} 28. f3 {[%emt 0:02:15]} Rdc8 {[%emt 0:02:14]} 29. Nc1 {[%emt 0:01:05]} Nxc1 {[%emt 0:01:06]} 30. Rxc1 {[%emt 0:00:10]} Bb4 {[%emt 0:00:07]} 31. Ra4 {[%emt 0:00:59]} Kb8 {[%emt 0:05:06]} 32. b6 {[%emt 0:01:25]} axb6 {[%emt 0:01:39]} 33. axb6 {[%emt 0:00:15]} Bxc3 {[%emt 0:00:24]} 34. Rxc4 {[%emt 0:00:17]} Rxc4 {[%emt 0:00:22]} 35. Rxc3 {[%emt 0:00:07]} Rc6 {[%emt 0:00:26]} 36. Rb3 {[%emt 0:00:45]} Kc8 {[%emt 0:00:42]} 37. f4 {[%emt 0:01:04]} exf4 {[%emt 0:00:40]} 38. gxf4 {[%emt 0:00:14]} Kd7 {[%emt 0:00:25]} 39. Kf3 {[%emt 0:00:50]} Rd6 {[%emt 0:00:51]} 40. d3 {[%emt 0:01:05]} Kc6 {[%emt 0:00:37]} 41. Ke4 {[%emt 0:16:44]} Kc5 {[%emt 0:16:10]} 42. Ke3 {[%emt 0:02:54]} Rxb6 {[%emt 0:00:47]} 43. Rxb6 {[%emt 0:00:29]} Kxb6 {[%emt 0:00:39]} 44. Kd4 {[%emt 0:00:02]} Kc6 {[%emt 0:00:25]} 45. Kc4 {[%emt 0:00:18]} g5 {[%emt 0:00:20]} 46. f5 {[%emt 0:00:17]} h5 {[%emt 0:00:17]} 47. d4 {[%emt 0:00:10]} h4 {[%emt 0:00:05]} 48. d5+ {[%emt 0:00:12]} Kd6 {[%emt 0:00:07]} 49. Kd4 {[%emt 0:00:18]} b5 {[%emt 0:00:05]} 50. Ke4 {[%emt 0:00:45]} b4 {[%emt 0:00:48]} 51. Kd4 {[%emt 0:00:01]} g4 {[%emt 0:00:06]} 52. Ke4 {[%emt 0:00:32]} b3 {[%emt 0:00:03]} 53. Kf4 {[%emt 0:00:05]} b2 {[%emt 0:00:05]} 54. Kxg4 {[%emt 0:00:04]} b1=Q {[%emt 0:00:54]} 55. Kxh4 {[%emt 0:00:00]} Qxf5 {[%emt 0:00:00]} 56. Kg3 {[%emt 0:00:00]} Qxd5 {[%emt 0:00:00]} 57. h4 {[%emt 0:00:00]} Qh5 {[%emt 0:00:00]} 58. Kh3 {[%emt 0:00:00]} Ke5 {[%emt 0:00:06]} 59. Kg3 {[%emt 0:00:15]} f5 {[%emt 0:00:04]} 60. Kh3 {[%emt 0:00:05]} Kf4 {[%emt 0:00:05]} 61. Kg2 {[%emt 0:01:21]} Qxh4 {[%emt 0:02:02]} 62. Kg1 {[%emt 0:00:07]} Kg3 {[%emt 0:00:11]} 63. Kf1 {[%emt 0:00:09]} Qe4 {[%emt 0:00:09]} 64. Kg1 {[%emt 0:00:31]} Qe1# 0-1

[Event "GER-ch Youth U10 2020"]
[Site "Willingen"]
[Date "2020.10.27"]
[Round "1.10"]
[White "Meng, Yuxuan"]
[Black "Barthel, Jacob"]
[Result "1-0"]
[ECO "C68"]
[WhiteElo "1515"]
[BlackElo "1231"]
[Annotator "NA RC"]
[PlyCount "92"]
[EventDate "2020.10.27"]
[EventType "swiss"]
[EventRounds "7"]
[EventCountry "GER"]
[SourceTitle "playchess.com"]
[Source "ChessBase"]
[SourceQuality "1"]
[TimeControl "40/4500+30:900+30"]

1. e4 {[%emt 0:00:00]} e5 {[%emt 0:00:00]} 2. Nf3 {[%emt 0:00:00]} Nc6 {[%emt 0:00:00]} 3. Bb5 {[%emt 0:00:00]} a6 {[%emt 0:00:13]} 4. Bxc6 {[%emt 0:00:00]} dxc6 {[%emt 0:00:10]} 5. O-O {[%emt 0:00:00]} Bd6 {[%emt 0:00:35]} 6. d4 {[%emt 0:00:52]} Bg4 {[%emt 0:04:39]} 7. dxe5 {[%emt 0:04:42]} Bxf3 {[%emt 0:00:28]} 8. Qxf3 {[%emt 0:00:24]} Bxe5 {[%emt 0:00:12]} 9. Nc3 {[%emt 0:01:33]} Nf6 {[%emt 0:02:03]} 10. Bg5 {[%emt 0:03:53]} h6 {[%emt 0:01:32]} 11. Bh4 {[%emt 0:03:36]} Qd6 {[%emt 0:11:49]} 12. Bxf6 {[%emt 0:06:51]} Qxf6 {[%emt 0:01:42]} 13. Qxf6 {[%emt 0:00:14]} Bxf6 {[%emt 0:00:07]} 14. e5 {[%emt 0:00:34]} Be7 {[%emt 0:01:15]} 15. Rad1 {[%emt 0:00:21]} Rd8 {[%emt 0:00:33]} 16. g3 {[%emt 0:00:46]} O-O {[%emt 0:00:13]} 17. Kg2 {[%emt 0:01:21]} Kh7 {[%emt 0:01:41]} 18. f4 {[%emt 0:00:24]} f6 {[%emt 0:07:38]} 19. exf6 {[%emt 0:05:20]} Bxf6 {[%emt 0:00:28]} 20. Rxd8 {[%emt 0:01:05]} Rxd8 {[%emt 0:00:21]} 21. Rd1 {[%emt 0:01:07]} Re8 {[%emt 0:02:31]} 22. Rd3 {[%emt 0:01:28]} Kg6 {[%emt 0:00:34]} 23. Kf3 {[%emt 0:00:16]} Re7 {[%emt 0:03:50]} 24. b3 {[%emt 0:02:26]} Bxc3 {[%emt 0:20:04]} 25. Rxc3 {[%emt 0:00:15]} Re1 {[%emt 0:01:35]} 26. Re3 {[%emt 0:01:33]} Rc1 {[%emt 0:00:17]} 27. Re2 {[%emt 0:01:03]} Kf6 {[%emt 0:00:42]} 28. g4 {[%emt 0:02:01]} Rf1+ {[%emt 0:01:14]} 29. Rf2 {[%emt 0:12:59]} Ra1 {[%emt 0:02:01]} 30. c4 {[%emt 0:02:16]} Rd1 {[%emt 0:01:53]} 31. f5 {[%emt 0:08:41]} Kg5 {[%emt 0:03:14]} 32. h3 {[%emt 0:03:41]} Rd3+ {[%emt 0:00:49]} 33. Kg2 {[%emt 0:03:10]} Kh4 {[%emt 0:01:12]} 34. Rf3 {[%emt 0:00:13]} Rd2+ {[%emt 0:01:25]} 35. Rf2 {[%emt 0:00:10]} Rxf2+ {[%emt 0:00:43]} 36. Kxf2 {[%emt 0:00:18]} Kxh3 {[%emt 0:00:06]} 37. Kf3 {[%emt 0:00:07]} Kh4 {[%emt 0:00:22]} 38. Kf4 {[%emt 0:00:07]} b5 {[%emt 0:00:21]} 39. a3 {[%emt 0:01:57]} c5 {[%emt 0:05:36]} 40. a4 {[%emt 0:00:54]} c6 {[%emt 0:00:58]} 41. a5 {[%emt 0:15:06]} b4 {[%emt 0:15:34]} 42. Kf3 {[%emt 0:00:28]} Kg5 {[%emt 0:00:09]} 43. Kg3 {[%emt 0:00:06]} g6 {[%emt 0:02:48]} 44. fxg6 {[%emt 0:00:43]} Kxg6 {[%emt 0:00:08]} 45. Kh4 {[%emt 0:00:14]} Kf6 {[%emt 0:00:50]} 46. Kh5 {[%emt 0:00:30]} Kg7 {[%emt 0:00:10]} 1-0

[Event "GER-ch Youth U10 2020"]
[Site "Willingen"]
[Date "2020.10.27"]
[Round "1.11"]
[White "Gulamzada, Elmir"]
[Black "Buchinger, Alexis"]
[Result "0-1"]
[ECO "C54"]
[WhiteElo "1397"]
[BlackElo "1496"]
[Annotator "NA RC"]
[PlyCount "174"]
[EventDate "2020.10.27"]
[EventType "swiss"]
[EventRounds "7"]
[EventCountry "GER"]
[SourceTitle "playchess.com"]
[Source "ChessBase"]
[SourceQuality "1"]
[TimeControl "40/4500+30:900+30"]

1. e4 {[%emt 0:00:00]} e5 {[%emt 0:00:00]} 2. Nf3 {[%emt 0:00:02]} Nc6 {[%emt 0:00:00]} 3. Bc4 {[%emt 0:00:50]} Bc5 {[%emt 0:00:00]} 4. c3 {[%emt 0:00:24]} Nf6 {[%emt 0:00:00]} 5. d4 {[%emt 0:00:31]} exd4 {[%emt 0:00:01]} 6. cxd4 {[%emt 0:00:14]} Bb4+ {[%emt 0:00:05]} 7. Bd2 {[%emt 0:00:33]} Bxd2+ {[%emt 0:00:40]} 8. Nbxd2 {[%emt 0:00:17]} d5 {[%emt 0:00:17]} 9. exd5 {[%emt 0:00:26]} Nxd5 {[%emt 0:00:05]} 10. O-O {[%emt 0:00:23]} O-O {[%emt 0:00:26]} 11. Ne5 {[%emt 0:01:24]} Nxe5 {[%emt 0:01:29]} 12. dxe5 {[%emt 0:00:38]} Be6 {[%emt 0:00:25]} 13. Qb3 {[%emt 0:05:07]} Rb8 {[%emt 0:01:34]} 14. Rad1 {[%emt 0:05:43]} b5 {[%emt 0:01:20]} 15. Bxd5 {[%emt 0:02:40]} Bxd5 {[%emt 0:00:47]} 16. Qd3 {[%emt 0:04:03]} Bxa2 {[%emt 0:01:42]} 17. Qa3 {[%emt 0:03:21]} Bd5 {[%emt 0:01:33]} 18. Nf3 {[%emt 0:03:46]} c6 {[%emt 0:01:57]} 19. Qxa7 {[%emt 0:03:28]} Qc8 {[%emt 0:00:35]} 20. Qe3 {[%emt 0:01:06]} Re8 {[%emt 0:01:20]} 21. Rfe1 {[%emt 0:02:28]} Qg4 {[%emt 0:00:41]} 22. Rd4 {[%emt 0:04:09]} Qh5 {[%emt 0:00:53]} 23. Rh4 {[%emt 0:04:30]} Qg6 {[%emt 0:01:33]} 24. Qg5 {[%emt 0:01:39]} Bxf3 {[%emt 0:00:23]} 25. Qxg6 {[%emt 0:00:21]} hxg6 {[%emt 0:00:06]} 26. gxf3 {[%emt 0:00:05]} Ra8 {[%emt 0:00:20]} 27. Rc1 {[%emt 0:05:50]} Re6 {[%emt 0:00:21]} 28. Re4 {[%emt 0:00:55]} Kf8 {[%emt 0:01:00]} 29. f4 Ke7 30. Kg2 {[%emt 0:02:34]} Kd7 {[%emt 0:01:27]} 31. Rd4+ {[%emt 0:04:28]} Kc7 {[%emt 0:00:48]} 32. Rcd1 {[%emt 0:00:24]} Re7 {[%emt 0:00:22]} 33. R1d3 {[%emt 0:01:33]} Kb6 {[%emt 0:06:08]} 34. Rh3 {[%emt 0:02:11]} g5 {[%emt 0:01:21]} 35. Kf3 {[%emt 0:01:26]} Kc5 {[%emt 0:00:53]} 36. Rd2 {[%emt 0:00:55]} Rae8 {[%emt 0:01:16]} 37. Rc2+ {[%emt 0:01:27]} Kb6 {[%emt 0:00:56]} 38. Rh7 {[%emt 0:01:00]} gxf4 {[%emt 0:01:08]} 39. Rxg7 {[%emt 0:00:56]} Rxe5 {[%emt 0:00:19]} 40. Rxf7 {[%emt 0:01:21]} Rc5 {[%emt 0:00:55]} 41. Rb7+ {[%emt 0:17:16]} Kxb7 {[%emt 0:15:14]} 42. Rxc5 {[%emt 0:00:05]} Rh8 {[%emt 0:00:41]} 43. Kxf4 {[%emt 0:01:28]} Rxh2 {[%emt 0:00:07]} 44. Kg3 {[%emt 0:00:16]} Rh1 {[%emt 0:01:08]} 45. f4 {[%emt 0:00:53]} Kb6 {[%emt 0:00:08]} 46. Rc3 {[%emt 0:00:56]} b4 {[%emt 0:00:28]} 47. Rf3 {[%emt 0:00:33]} Rg1+ {[%emt 0:01:47]} 48. Kh2 {[%emt 0:00:16]} Rg8 {[%emt 0:00:18]} 49. f5 {[%emt 0:00:25]} Kc5 {[%emt 0:00:11]} 50. f6 {[%emt 0:00:57]} Kd6 {[%emt 0:00:22]} 51. f7 {[%emt 0:00:23]} Rf8 {[%emt 0:00:05]} 52. Kg3 c5 53. Kg4 {[%emt 0:03:19]} Ke7 {[%emt 0:06:58]} 54. Re3+ {[%emt 0:01:52]} Kf6 {[%emt 0:01:00]} 55. Rf3+ {[%emt 0:01:21]} Kg7 {[%emt 0:00:12]} 56. Rf5 {[%emt 0:00:54]} Rxf7 {[%emt 0:01:06]} 57. Rxc5 {[%emt 0:00:56]} Rf2 {[%emt 0:00:24]} 58. Rg5+ {[%emt 0:01:27]} Kf6 {[%emt 0:00:10]} 59. Rh5 {[%emt 0:03:43]} Ke6 {[%emt 0:00:58]} 60. Rh6+ {[%emt 0:01:08]} Kd5 {[%emt 0:00:07]} 61. Rh5+ {[%emt 0:00:29]} Kc4 {[%emt 0:01:21]} 62. Rh4 Rxb2 63. Kf3+ {[%emt 0:02:11]} Kc3 {[%emt 0:01:01]} 64. Rh3 {[%emt 0:00:26]} b3 {[%emt 0:00:29]} 65. Ke4+ {[%emt 0:00:25]} Kc4 {[%emt 0:00:29]} 66. Rh8 Re2+ 67. Kf3 {[%emt 0:01:38]} Rc2 {[%emt 0:01:05]} 68. Rc8+ Kb4 69. Rb8+ {[%emt 0:02:30]} Kc3 {[%emt 0:01:12]} 70. Rc8+ {[%emt 0:00:30]} Kd2 {[%emt 0:00:08]} 71. Rb8 {[%emt 0:01:22]} b2 72. Rd8+ {[%emt 0:00:59]} Kc1 {[%emt 0:00:13]} 73. Rb8 {[%emt 0:02:12]} b1=Q {[%emt 0:00:18]} 74. Rxb1+ {[%emt 0:00:05]} Kxb1 {[%emt 0:00:09]} 75. Ke3 {[%emt 0:00:06]} Rc8 {[%emt 0:00:27]} 76. Kd4 {[%emt 0:00:09]} Re8 {[%emt 0:00:07]} 77. Kd5 Kc2 78. Kc6 Rd8 79. Kc7 Rd2 80. Kc6 {[%emt 0:02:33]} Kc3 {[%emt 0:01:41]} 81. Kb7 {[%emt 0:00:10]} Kc4 {[%emt 0:00:10]} 82. Ka8 Rb2 83. Ka7 {[%emt 0:01:40]} Kc5 {[%emt 0:00:39]} 84. Ka6 {[%emt 0:00:39]} Rb3 85. Ka7 Kc6 {[%emt 0:01:08]} 86. Ka8 {[%emt 0:00:46]} Kc7 {[%emt 0:00:04]} 87. Ka7 {[%emt 0:00:17]} Ra3# 0-1

[Event "GER-ch Youth U10 2020"]
[Site "Willingen"]
[Date "2020.10.27"]
[Round "1.12"]
[White "Geist, Tim"]
[Black "Laux, Filip"]
[Result "1-0"]
[ECO "D05"]
[WhiteElo "1578"]
[BlackElo "1198"]
[Annotator "NA RC"]
[PlyCount "61"]
[EventDate "2020.10.27"]
[EventType "swiss"]
[EventRounds "7"]
[EventCountry "GER"]
[SourceTitle "playchess.com"]
[Source "ChessBase"]
[SourceQuality "1"]
[TimeControl "40/4500+30:900+30"]

1. d4 {[%emt 0:00:00]} d5 {[%emt 0:00:00]} 2. Nf3 {[%emt 0:00:00]} Nf6 {[%emt 0:00:02]} 3. e3 {[%emt 0:00:00]} e6 {[%emt 0:00:17]} 4. Bd3 {[%emt 0:00:03]} c5 {[%emt 0:00:31]} 5. b3 {[%emt 0:00:08]} Nc6 {[%emt 0:00:24]} 6. a3 {[%emt 0:00:31]} Qc7 {[%emt 0:00:38]} 7. Bb2 {[%emt 0:00:09]} cxd4 {[%emt 0:01:10]} 8. exd4 {[%emt 0:00:19]} Bd6 {[%emt 0:01:21]} 9. Qe2 {[%emt 0:01:30]} O-O {[%emt 0:02:07]} 10. O-O {[%emt 0:00:23]} Re8 {[%emt 0:01:39]} 11. Ne5 {[%emt 0:00:51]} Nd7 {[%emt 0:04:23]} 12. f4 {[%emt 0:01:11]} Ne7 {[%emt 0:04:24]} 13. Rf3 {[%emt 0:01:06]} Nf6 {[%emt 0:05:12]} 14. Nd2 {[%emt 0:00:46]} Bd7 {[%emt 0:06:19]} 15. c4 {[%emt 0:01:36]} b6 {[%emt 0:03:02]} 16. Rc1 {[%emt 0:01:00]} Qb7 {[%emt 0:03:19]} 17. c5 {[%emt 0:01:49]} Bc7 {[%emt 0:03:07]} 18. Nxd7 {[%emt 0:01:03]} Nxd7 {[%emt 0:00:12]} 19. Bb5 {[%emt 0:00:34]} Nf6 {[%emt 0:01:10]} 20. Bxe8 {[%emt 0:01:03]} Nxe8 {[%emt 0:00:33]} 21. b4 {[%emt 0:00:41]} a5 {[%emt 0:03:53]} 22. b5 {[%emt 0:01:24]} bxc5 {[%emt 0:01:11]} 23. dxc5 {[%emt 0:00:32]} Rb8 {[%emt 0:01:21]} 24. a4 {[%emt 0:01:05]} Nf5 {[%emt 0:02:39]} 25. b6 {[%emt 0:01:18]} Bxb6 {[%emt 0:01:14]} 26. Rb3 {[%emt 0:01:18]} Qa7 {[%emt 0:01:13]} 27. cxb6 {[%emt 0:01:08]} Rxb6 {[%emt 0:00:53]} 28. Qf2 {[%emt 0:00:45]} Rb7 {[%emt 0:00:37]} 29. Qxa7 {[%emt 0:00:27]} Rxa7 {[%emt 0:00:08]} 30. Rc8 {[%emt 0:00:10]} Kf8 {[%emt 0:00:39]} 31. Ba3+ 1-0

[Event "GER-ch Youth U10 2020"]
[Site "Willingen"]
[Date "2020.10.27"]
[Round "1.13"]
[White "Zimmer, Tim"]
[Black "Xue, Luka"]
[Result "0-1"]
[ECO "C01"]
[WhiteElo "1025"]
[BlackElo "1473"]
[Annotator "NA RC"]
[PlyCount "94"]
[EventDate "2020.10.27"]
[EventType "swiss"]
[EventRounds "7"]
[EventCountry "GER"]
[SourceTitle "playchess.com"]
[Source "ChessBase"]
[SourceQuality "1"]
[TimeControl "40/4500+30:900+30"]

1. e4 {[%emt 0:00:00]} e6 {[%emt 0:00:00]} 2. d4 {[%emt 0:00:12]} d5 {[%emt 0:00:07]} 3. exd5 {[%emt 0:00:35]} exd5 {[%emt 0:00:11]} 4. Nc3 {[%emt 0:00:23]} Nf6 {[%emt 0:00:29]} 5. Bd3 {[%emt 0:00:52]} c5 {[%emt 0:00:44]} 6. Bb5+ {[%emt 0:11:53]} Bd7 {[%emt 0:00:59]} 7. Qe2+ {[%emt 0:01:44]} Be7 {[%emt 0:01:44]} 8. Bxd7+ {[%emt 0:01:48]} Nbxd7 {[%emt 0:00:42]} 9. Be3 {[%emt 0:06:23]} O-O {[%emt 0:01:13]} 10. Nf3 {[%emt 0:00:30]} Re8 {[%emt 0:01:59]} 11. O-O {[%emt 0:02:01]} Qb6 {[%emt 0:00:51]} 12. Qb5 {[%emt 0:10:59]} Rac8 {[%emt 0:02:45]} 13. Qxb6 {[%emt 0:06:35]} Nxb6 {[%emt 0:01:50]} 14. Nd2 {[%emt 0:00:47]} a6 {[%emt 0:01:56]} 15. Rfe1 {[%emt 0:03:28]} Bd6 {[%emt 0:00:44]} 16. dxc5 {[%emt 0:05:11]} Bxc5 {[%emt 0:01:20]} 17. Bxc5 {[%emt 0:00:13]} Rxc5 {[%emt 0:03:26]} 18. Rxe8+ {[%emt 0:02:53]} Nxe8 {[%emt 0:00:02]} 19. Nb3 {[%emt 0:00:04]} Rc7 {[%emt 0:01:12]} 20. Re1 {[%emt 0:02:58]} Nf6 {[%emt 0:02:12]} 21. Nd4 {[%emt 0:03:55]} g6 {[%emt 0:01:47]} 22. Re5 {[%emt 0:04:56]} Nc4 {[%emt 0:02:44]} 23. Nxd5 {[%emt 0:01:10]} Nxd5 {[%emt 0:00:49]} 24. Rxd5 {[%emt 0:00:17]} Nxb2 {[%emt 0:00:16]} 25. f3 {[%emt 0:04:14]} Re7 {[%emt 0:06:50]} 26. Nb3 {[%emt 0:03:25]} Re2 {[%emt 0:04:42]} 27. Rc5 {[%emt 0:03:13]} Nd1 {[%emt 0:02:45]} 28. Kf1 {[%emt 0:01:34]} Rxc2 {[%emt 0:02:38]} 29. Rxc2 {[%emt 0:01:33]} Ne3+ {[%emt 0:00:08]} 30. Ke2 {[%emt 0:00:19]} Nxc2 {[%emt 0:00:10]} 31. Nc5 {[%emt 0:00:07]} Nb4 {[%emt 0:02:14]} 32. a3 {[%emt 0:00:28]} Nc2 {[%emt 0:00:15]} 33. a4 {[%emt 0:00:53]} b5 {[%emt 0:00:26]} 34. Kd2 {[%emt 0:02:00]} Nb4 {[%emt 0:04:05]} 35. Kc3 {[%emt 0:01:49]} Nd5+ {[%emt 0:00:36]} 36. Kd4 {[%emt 0:00:34]} Nb6 {[%emt 0:00:25]} 37. a5 {[%emt 0:00:29]} Nc4 {[%emt 0:05:49]} 38. Nxa6 {[%emt 0:01:18]} Nxa5 {[%emt 0:02:28]} 39. Kc5 {[%emt 0:00:19]} Nb3+ {[%emt 0:00:33]} 40. Kxb5 {[%emt 0:00:25]} Kg7 {[%emt 0:00:25]} 41. Kc4 {[%emt 0:15:22]} Nd2+ {[%emt 0:15:41]} 42. Kd3 {[%emt 0:00:53]} Nf1 {[%emt 0:00:20]} 43. Ke2 {[%emt 0:02:10]} Nxh2 {[%emt 0:00:18]} 44. g3 {[%emt 0:00:05]} g5 {[%emt 0:02:11]} 45. g4 {[%emt 0:00:00]} f5 {[%emt 0:00:00]} 46. Kf2 {[%emt 0:00:00]} fxg4 {[%emt 0:00:00]} 47. Kg2 {[%emt 0:00:00]} Nxf3 {[%emt 0:00:00]} 0-1

[Event "GER-ch Youth U10 2020"]
[Site "Willingen"]
[Date "2020.10.27"]
[Round "1.14"]
[White "Burkart, Lloyd Shang"]
[Black "Bock, Leonas"]
[Result "1-0"]
[ECO "D30"]
[WhiteElo "1508"]
[BlackElo "1301"]
[Annotator "NA RC"]
[PlyCount "87"]
[EventDate "2020.10.27"]
[EventType "swiss"]
[EventRounds "7"]
[EventCountry "GER"]
[SourceTitle "playchess.com"]
[Source "ChessBase"]
[SourceQuality "1"]
[TimeControl "40/4500+30:900+30"]

1. d4 {[%emt 0:00:00]} d5 {[%emt 0:00:00]} 2. c4 {[%emt 0:00:00]} e6 {[%emt 0:00:00]} 3. Nf3 {[%emt 0:00:19]} f5 {[%emt 0:00:27]} 4. cxd5 {[%emt 0:01:25]} exd5 {[%emt 0:00:13]} 5. Nc3 {[%emt 0:01:17]} Nf6 {[%emt 0:00:28]} 6. Bf4 {[%emt 0:00:39]} Bd6 {[%emt 0:02:00]} 7. e3 {[%emt 0:02:07]} O-O {[%emt 0:01:24]} 8. Be2 {[%emt 0:05:14]} c6 {[%emt 0:02:57]} 9. O-O {[%emt 0:00:26]} Qc7 {[%emt 0:05:30]} 10. Bg3 {[%emt 0:02:12]} Nbd7 {[%emt 0:03:32]} 11. Rc1 {[%emt 0:00:48]} Ne4 {[%emt 0:04:07]} 12. Nxd5 {[%emt 0:01:50]} Qd8 {[%emt 0:04:23]} 13. Bxd6 {[%emt 0:01:06]} Nxd6 {[%emt 0:00:23]} 14. Nf4 {[%emt 0:01:32]} Nf6 {[%emt 0:02:46]} 15. Qb3+ {[%emt 0:02:16]} Kh8 {[%emt 0:06:38]} 16. Rfd1 {[%emt 0:02:08]} Nde4 {[%emt 0:04:24]} 17. Bc4 {[%emt 0:05:01]} g5 {[%emt 0:06:31]} 18. Nd3 {[%emt 0:04:45]} Re8 {[%emt 0:02:17]} 19. Nfe5 {[%emt 0:01:53]} Nd6 {[%emt 0:03:10]} 20. Nc5 {[%emt 0:02:48]} Re7 {[%emt 0:02:34]} 21. Be2 {[%emt 0:12:38]} Nd5 {[%emt 0:02:53]} 22. Bf3 {[%emt 0:03:15]} Nf7 {[%emt 0:01:50]} 23. Nxf7+ {[%emt 0:05:33]} Rxf7 {[%emt 0:00:09]} 24. Bxd5 {[%emt 0:00:32]} Qxd5 {[%emt 0:00:52]} 25. Qxd5 {[%emt 0:00:05]} cxd5 {[%emt 0:00:05]} 26. Nd3 {[%emt 0:00:35]} Be6 {[%emt 0:01:13]} 27. Rc5 {[%emt 0:01:02]} h5 {[%emt 0:02:41]} 28. Rdc1 {[%emt 0:01:51]} f4 {[%emt 0:03:41]} 29. exf4 {[%emt 0:01:02]} gxf4 {[%emt 0:00:19]} 30. Re1 {[%emt 0:00:20]} Rf6 {[%emt 0:03:56]} 31. Re5 {[%emt 0:02:28]} f3 {[%emt 0:03:17]} 32. Rxh5+ {[%emt 0:02:51]} Kg7 {[%emt 0:01:01]} 33. Ne5 {[%emt 0:02:59]} Re8 {[%emt 0:02:37]} 34. Rc7+ {[%emt 0:02:06]} Bf7 {[%emt 0:00:23]} 35. gxf3 {[%emt 0:01:19]} Kf8 {[%emt 0:00:47]} 36. Nd7+ {[%emt 0:00:43]} Kg7 {[%emt 0:00:12]} 37. Nxf6 {[%emt 0:00:14]} Kxf6 {[%emt 0:00:15]} 38. Rh4 {[%emt 0:01:31]} Re1+ {[%emt 0:00:44]} 39. Kg2 {[%emt 0:00:10]} Be6 {[%emt 0:00:11]} 40. f4 {[%emt 0:02:19]} Re4 {[%emt 0:01:48]} 41. Rxb7 {[%emt 0:20:41]} Rxd4 {[%emt 0:15:27]} 42. Rxa7 {[%emt 0:00:17]} Rd2 {[%emt 0:01:29]} 43. Ra6 {[%emt 0:01:55]} Rxb2 {[%emt 0:00:41]} 44. Rh6+ 1-0